Cogmind - Beta 16.1 @@@ ROGUE MODE // 2026.03.04 @ 22:04:37 Player: TheSkyeDoctor Result: Destroyed by G-34 Mercenary with Small Laser Performance ------------- Evolutions (1) 500 Regions Visited (3) 600 Robots Destroyed (47) 235 Value Destroyed (1206) 1206 Prototype IDs (2) 40 Alien Tech Used (0) 0 Bonus (101) 101 TOTAL SCORE: 2682 Bonus ------- Follower Combat Kills 113 Friendly Fire -12 Cogmind --------- Core Integrity 0/400 Matter 260/300 Energy 280/280 System Corruption 1% Temperature Cool (31) Movement Rolling (130) Ox2 Location -9/Storage Parts ------- > --- POWER (1) -------- Cooled Ion Engine > --- PROPULSION (2) --- Compact Wheel > --- UTILITY (4) ------ Large Storage Unit Terrain Scan Processor Core Shielding Light Armor Plating > --- WEAPON (2) ------- Light Assault Rifle > --- INVENTORY (15) --- Heavy Ion Engine Cooled Ion Engine Light Treads Light Treads Light Treads Heat Sink Large Matter Pod (150) Terrain Scan Processor Improved Targeting Computer Improved Targeting Computer Core Shielding Rocket Launcher Peak State ------------ > --- POWER ------------ Cooled Ion Engine > --- PROPULSION ------- Light Treads Improved Treads > --- UTILITY ---------- Large Storage Unit Improved Terrain Scanner Terrain Scan Processor Targeting Computer > --- WEAPON ----------- Beam Rifle Light Assault Rifle > --- INVENTORY -------- Heavy Ion Engine Heavy Ion Engine Cooled Ion Engine Light Treads Wheel Compact Wheel Large Matter Pod Terrain Scan Processor Core Shielding Core Shielding Light Armor Plating Light Armor Plating Beam Rifle [Rating: 18] Favorites ----------- Power Ion Engine Engine Ion Engine Propulsion Light Treads Treads Light Treads Wheel Compact Wheel Utility Large Storage Unit Device Improved Terrain Scanner Storage Large Storage Unit Processor Targeting Computer Protection Core Shielding Weapon Light Assault Rifle Energy Gun Beam Rifle Ballistic Gun Light Assault Rifle Launcher Grenade Launcher Impact Weapon Hammer Build | -11 -10 -9 -9 ------- Run | Yrd Mat Mat Sto Slots Evolved 2 | . . 2 . Power . | . . . . Propulsion . | . . . . Utility 2 | . . 2 . Weapon . | . . . . Parts Attached 29 | 7 1 7 14 Power 4 | 1 . . 3 Engine 4 | 1 . . 3 Core . | . . . . Reactor . | . . . . Propulsion 8 | 2 . 1 5 Treads 6 | 2 . 1 3 Leg . | . . . . Wheel 2 | . . . 2 Hover . | . . . . Flight . | . . . . Utility 10 | 2 1 3 4 Device 3 | 1 . 1 1 Storage 2 | 1 1 . . Processor 2 | . . 2 . Hackware . | . . . . Protection 3 | . . . 3 Artifact . | . . . . Weapon 7 | 2 . 3 2 Energy Gun 3 | . . 1 2 Energy Cannon . | . . . . Ballistic Gun 2 | 2 . . . Ballistic Cannon . | . . . . Launcher 1 | . . 1 . Special Weapon . | . . . . Impact Weapon 1 | . . 1 . Slashing Weapon . | . . . . Piercing Weapon . | . . . . Special Melee Weapon . | . . . . Unidentified Prototypes 2 | . . . 2 Parts Lost 15 | . . 4 11 Power 1 | . . . 1 Propulsion 5 | . . 1 4 Utility 4 | . . 1 3 Weapon 5 | . . 2 3 Highest Loss Streak 4 | . . 2 4 To Critical Strikes . | . . . . Average Backups 7 | 3 5 6 12 Power 1 | . 1 1 1 Propulsion 2 | 1 2 2 3 Utility 2 | . 1 1 6 Weapon 1 | . 1 1 1 Tool/Special . | . . . . Unused Backups 11 | . . 1 10 Power 3 | . . 1 2 Propulsion 1 | . . . 1 Utility 6 | . . . 6 Weapon 1 | . . . 1 Tool/Special . | . . . . Average Slot Usage (%) 98 | . 100 97 98 Engine 11 | . 14 11 10 Treads 22 | . 28 21 20 Device 8 | . 14 10 4 Storage 11 | . 14 11 11 Processor 14 | . . 20 21 Protection 3 | . . . 6 Energy Gun 5 | . . 1 12 Ballistic Gun 13 | . 28 7 8 Impact Weapon 3 | . . 10 1 Peak Build Rating 18 | 7 7 15 18 Average Rating 11 | 6 7 11 15 On Entrance 7 | . 7 7 15 Avg Prop Armor Cover (%) . | . . . . Naked Turns . | . . . . Heaviest Build 36 | 14 29 31 36 Greatest Support 43 | 40 40 43 43 Greatest Overweight (x) 1 | . . . 1 Average Overweight (x) . | . . . . Largest Inventory Capacity 15 | 8 15 15 15 Average Capacity 13 | 7 13 15 15 Most Carried 15 | 4 7 9 15 Average Carried 7 | 3 5 6 12 Final Capacity 15 | 8 15 15 15 Final Carried 12 | 4 7 9 12 Class Distribution -------------------- 93% | Mutant 6% | Scavenger-Mutant Dominant Class ---------------- Mutant | -10/Materials Mutant | -9/Materials Mutant | -9/Storage Resources | -11 -10 -9 -9 ----------- Run | Yrd Mat Mat Sto Matter Collected 1036 | 330 37 399 270 Remotely . | . . . . Salvage Created 1462 | 135 37 550 740 Parts 102 | 14 1 37 50 Haulers Intercepted 1 | . . . 1 Recyclers Shooed 1 | 1 . . . Parts Field Recycled . | . . . . Retrieved Matter . | . . . . Parts Self-Destructed . | . . . . Prevented . | . . . . Parts Restored . | . . . . Kills | -11 -10 -9 -9 ------- Run | Yrd Mat Mat Sto Combat Hostiles Destroyed 33 | . 1 13 19 Melee 4 | . . 4 . Guns 22 | . 1 3 18 AOE 4 | . . 4 . Classes Destroyed 9 | 2 1 3 3 Worker 1 | . . . 1 Tunneler 7 | 5 . 2 . Hauler 1 | . . . 1 Recycler 1 | 1 . . . Watcher 4 | . . 3 1 Swarmer 7 | . . . 7 Grunt 20 | . 1 10 9 Duelist 1 | . . 1 . Sentry 5 | . . 2 3 Best Kill Streak 6 | 3 1 5 6 Combat Bots Only 5 | . 1 3 5 Max Kills in Single Turn 2 | 1 1 2 2 Gunslinging . | . . . . Exploded 2 | . . 2 . Melee 1 | . . 1 . Uniques/NPCs Destroyed . | . . . . Combat | -11 -10 -9 -9 -------- Run | Yrd Mat Mat Sto Hostile Shots Fired 241 | . 11 76 154 Missed 57 | . 6 21 30 Hits 184 | . 5 55 124 Melee 2 | . . 2 . Projectile 182 | . 5 53 124 Critical Strikes 5 | . . 3 2 Damage Taken 2250 | . 56 794 1400 Core 427 | . 24 185 218 Absorbed by Shields . | . . . . Redirected to Shielding 27 | . . . 27 Core Remaining (%) 95 | 100 90 . . Volleys Fired 141 | 17 19 29 76 Largest 2 | 2 2 1 2 Hottest 112 | 40 40 56 112 Shots Fired 235 | 34 38 29 134 Gun 225 | 34 38 19 134 Cannon . | . . . . Launcher 10 | . . 10 . Special . | . . . . Kinetic 139 | 34 38 14 53 Thermal 86 | . . 5 81 Explosive 10 | . . 10 . Electromagnetic . | . . . . Robot Hit Streak 10 | 6 4 6 10 Robot Miss Streak 5 | 3 5 2 4 Penetration Max . | . . . . Secondary Targets 5 | . . . 5 Max Gunslinging Chain 1 | . . . 1 Shots Hit Robots 165 | 22 17 36 90 Core Hits 77 | 10 3 25 39 Critical Kills 1 | . . 1 . Critical Parts Destroyed 3 | . . 3 . Critical Strikes 15 | . . 7 8 Burn 9 | . . 1 8 Smash 6 | . . 6 . Melee Attacks 45 | . . 41 4 Impact 45 | . . 41 4 Slashing . | . . . . Piercing . | . . . . Sneak Attacks . | . . . . Combat Hostiles . | . . . . Follow-up Attacks . | . . . . Damage Inflicted 2735 | 227 175 1186 1147 Guns 1689 | 227 175 172 1115 Cannons . | . . . . Explosions 499 | . . 499 . Melee 536 | . . 515 21 Ramming 11 | . . . 11 Kinetic 797 | 227 175 114 281 Thermal 892 | . . 58 834 Explosive 499 | . . 499 . Electromagnetic . | . . . . Impact 536 | . . 515 21 Slashing . | . . . . Piercing . | . . . . Highest Corruption 1 | . . . 1 Average Corruption 1 | . . . 1 Corruption Purged . | . . . . Corruption Blocked . | . . . . Effects 9 | . . . 9 Message Errors 1 | . . . 1 Matter Fused 3 | . . . 3 Heat Flow Errors 1 | . . . 1 Energy Discharges 2 | . . . 2 Data Loss (major) 1 | . . . 1 Alerts 1 | . . . 1 Overload Shots . | . . . . Overflow Damage 73 | . . 73 . Projectiles . | . . . . Explosions 1 | . . 1 . Melee 72 | . . 72 . Knockbacks 3 | . . 3 . Impact 3 | . . 3 . Kinetic . | . . . . Secondary . | . . . . Self-Inflicted Damage 11 | . . . 11 Shots . | . . . . Rammed . | . . . . Targets Rammed . | . . . . Kicked . | . . . . Crushed . | . . . . Highest Temperature 417 | . 6 49 417 Average Temperature 110 | . 6 18 118 Received Heat Transfer 1044 | . 30 429 585 Effects 10 | . . . 10 Shutdowns 2 | . . . 2 Interference 5 | . . . 5 Matter Decay 2 | . . . 2 Damage (minor) 1 | . . . 1 Siege Activations . | . . . . Martial Activations . | . . . . Shielding Activations . | . . . . Robots Disrupted . | . . . . Combat Hostiles . | . . . . Robots Corrupted 2 | . . 2 . Combat Hostiles 2 | . . 2 . Parts Fried . | . . . . Impact Corruptions 6 | . . 6 . Robots Melted 1 | . . . 1 Combat Hostiles 1 | . . . 1 Parts Melted 7 | . . . 7 Heat Transferred 2945 | . . 222 2723 Parts Sabotaged . | . . . . Parts Stolen . | . . . . Parts Stripped . | . . . . Power Chain Reactions . | . . . . Alert | -11 -10 -9 -9 ------- Run | Yrd Mat Mat Sto Maximum Alert Level 1 | . . 1 . Low Security (%) 95 | 100 100 80 100 Level 1 4 | . . 19 . Level 2 . | . . . . Level 3 . | . . . . Level 4 . | . . . . Level 5 . | . . . . High Security . | . . . . Max Security . | . . . . Peak Influence 225 | 10 30 225 148 Initial 80 | . . . 80 Average 48 | . 1 80 76 Influence Increases 1256 | 30 47 526 653 Destroy 0b10 Robot/C 720 | . 20 260 440 Destroy 0b10 Robot/NC 75 | 30 . 25 20 Destroy Leader 170 | . 10 76 84 Allied During Kill 10 | . . . 10 Successful Hack 62 | . 17 9 36 Disable Machine 15 | . . 15 . Destroy Structure 54 | . . 51 3 Lose Combat Pursuer 150 | . . 90 60 Influence Decreases 1124 | 30 47 334 713 Entered New Map 112 | . . . 112 Time Decay 822 | 30 47 294 451 Lost Part 140 | . . 30 110 Lost Ally 50 | . . 10 40 Squads Dispatched 5 | . 1 1 3 Investigation 1 | . . . 1 Extermination . | . . . . Reinforcement 2 | . 1 1 . Assault 2 | . . . 2 Garrison . | . . . . Intercept . | . . . . Searches Triggered . | . . . . Construction Impeded . | . . . . Haulers Reinforced . | . . . . Active Scanning Responses . | . . . . Cargo Convoy Interrupts . | . . . . Stealth | -11 -10 -9 -9 --------- Run | Yrd Mat Mat Sto Distress Signals 9 | . . 8 1 Communications Jammed . | . . . . Distress Signals . | . . . . Times Spotted 70 | . 11 27 32 Peak Tracking Total 10 | . 2 4 10 Tactical Retreats 7 | . . 5 2 Traps | -11 -10 -9 -9 ------- Run | Yrd Mat Mat Sto Traps Triggered 3 | . . 1 2 Indirectly . | . . . . Trap Hack Attempts . | . . . . Triggered . | . . . . Disarmed . | . . . . Reprogrammed . | . . . . Reused . | . . . . Traps Extracted . | . . . . Installed . | . . . . Triggered . | . . . . Machines | -11 -10 -9 -9 ---------- Run | Yrd Mat Mat Sto Machines Disabled 1 | . . 1 . Max in Single Turn 1 | . . 1 . Machines Repaired . | . . . . Machines Dismantled . | . . . . Machines Sabotaged . | . . . . Overloaded Fab Kills . | . . . . Hacking | -11 -10 -9 -9 --------- Run | Yrd Mat Mat Sto Machines Accessed 12 | . 4 3 5 Terminals 11 | . 3 3 5 Fabricators . | . . . . Repair Stations . | . . . . Recycling Units 1 | . 1 . . Scanalyzers . | . . . . Garrison Access . | . . . . Total Hacks 37 | . 11 11 15 Successful 21 | . 6 7 8 Failed 16 | . 5 4 7 Catastrophic 2 | . 2 . . Database Lockouts . | . . . . Manual 35 | . 9 11 15 Terminals 36 | . 10 11 15 Fabricators . | . . . . Repair Stations . | . . . . Recycling Units 1 | . 1 . . Scanalyzers . | . . . . Garrison Access . | . . . . Terminal Hacks 3 | . 1 1 1 Open Door 1 | . . . 1 Terminal Index 2 | . 1 1 . Fabricator Hacks . | . . . . Repair Station Hacks . | . . . . Recycling Unit Hacks 1 | . 1 . . Retrieve Components 1 | . 1 . . Scanalyzer . | . . . . Garrison Access Hacks . | . . . . Unauthorized Hacks 17 | . 4 6 7 Terminals 17 | . 4 6 7 Assimilate 8 | . 2 3 3 Botnet 9 | . 2 3 4 Fabricators . | . . . . Repair Stations . | . . . . Recycling Units . | . . . . Scanalyzers . | . . . . Garrison Access . | . . . . Data Cores Recovered . | . . . . Used . | . . . . Hacking Detections 10 | . 3 2 5 Full Trace Events . | . . . . Feedback Events . | . . . . Feedback Blocked . | . . . . Robot Schematics Acquired . | . . . . Robots Built . | . . . . Authchips . | . . . . Time . | . . . . Total Robot Build Rating . | . . . . Part Schematics Acquired . | . . . . Parts Built . | . . . . Authchips . | . . . . Time . | . . . . Total Part Build Rating . | . . . . Part Studies Acquired . | . . . . Parts Repaired . | . . . . Time . | . . . . Parts Recycled . | . . . . Recycled Matter . | . . . . Retrieved Matter . | . . . . Retrieved Components 2 | . 2 . . Parts Scanalyzed . | . . . . Part Schematics Acquired . | . . . . Parts Damaged . | . . . . Bothacking | -11 -10 -9 -9 ------------ Run | Yrd Mat Mat Sto Used RIF Installer . | . . . . Robots Hacked . | . . . . Non-combat . | . . . . Combat . | . . . . Robot Hacks Applied . | . . . . Relay Couplers Released . | . . . . Fabnet Peak Effective % . | . . . . Robots Rewired . | . . . . Allies Hacked . | . . . . Hacks Repelled . | . . . . Allies | -11 -10 -9 -9 -------- Run | Yrd Mat Mat Sto Total Allies 3 | . 1 . 2 Largest Group 2 | . 1 1 2 Highest-Rated Group 62 | . 10 10 62 Highest-Rated Ally 31 | . 10 10 31 Total Orders . | . . . . Ally Attacks 19 | . . . 19 Total Damage 276 | . . . 276 Kills 4 | . . . 4 Allies Corrupted . | . . . . Allies Melted . | . . . . Intel | -11 -10 -9 -9 ------- Run | Yrd Mat Mat Sto Active Infowar (turns) 2067 | 163 785 734 385 Terrain 1036 | . . 651 385 Seismic 1031 | 163 785 83 . Robot Analysis Total . | . . . . Derelict Logs Recovered . | . . . . Drone Launches . | . . . . Drone Recoveries . | . . . . Exploration | -11 -10 -9 -9 ------------- Run | Yrd Mat Mat Sto Turns Passed 3171 | 436 785 766 1184 Spaces Moved 1511 | 186 439 340 546 Core 11 | 11 . . . Treads 1461 | 175 439 340 507 Legs . | . . . . Wheels 39 | . . . 39 Hover . | . . . . Flight . | . . . . Fastest Speed 50 | 50 160 160 105 Average Speed 157 | 153 160 160 156 Slowest Speed 240 | 160 160 160 240 Overloaded Moves . | . . . . Propulsion Burnouts . | . . . . Robots Hopped . | . . . . Potential Cave-ins . | . . . . Cave-ins Triggered . | . . . . Exploration Rate (%) 39 | 6 49 36 68 Regions Visited 3 Branch Regions 1 Pre-discovered Areas . | . . . . Known Exits Taken . | . . . . Unknown Exits Taken 3 | 1 1 1 . Scrap Searched . | . . . . Spaces Dug 6 | . . 4 2 Terrain Destroyed 58 | . . 56 2 Melee 6 | . . 4 2 Projectile . | . . . . AOE 52 | . . 52 . Terrain Rammed 1 | . . . 1 Walls Destroyed . | . . . . Machines Disabled . | . . . . Actions | -11 -10 -9 -9 --------- Run | Yrd Mat Mat Sto Total 1994 | 303 488 461 742 Wait 230 | 90 26 35 79 Move 1508 | 185 438 339 546 Hop . | . . . . Pick Up 30 | 4 3 9 14 Fast Attach 8 | 7 . . 1 Attach 14 | . . 6 8 Detach . | . . . . Swap 9 | . 1 1 7 Drop 5 | . 1 1 3 Fire 141 | 17 19 29 76 Melee 45 | . . 41 4 Ram 1 | . . . 1 Kick . | . . . . Crush . | . . . . Escape Stasis . | . . . . Rewire 3 | . . . 3 Trap . | . . . . Miscellaneous . | . . . . Route ------- -11/Scrapyard -10/Materials -9/Materials (discovered 2 exits: [*Mat] / *Sto) -9/Storage History --------- Turn | Location | Event 7 | -11/Scrapyard | Discovered new exit (range 15) 437 | -11/Scrapyard | Entered Materials 438 | -10/Materials | Build established: Mutant 1160 | -10/Materials | Discovered new exit (range 3) 1222 | -10/Materials | Entered another Materials area 1222 | -9/Materials | Accompanied by 1 ally 1222 | -9/Materials | Evolved 2 slots: Utility x2 1886 | -9/Materials | Discovered new exit (range 16) 1957 | -9/Materials | Discovered new exit (range 15) 1988 | -9/Materials | Entered Storage 2083 | -9/Storage | Core integrity fell below 50% 2222 | -9/Storage | Lost 3 parts (1p1n1u) 2926 | -9/Storage | Met a pair of Derelict thieves 3088 | -9/Storage | Core integrity fell below 20% 3172 | -9/Storage | Destroyed by G-34 Mercenary with Small Laser Last Messages --------------- 03135_ Switching to secondary target: G-34 Mercenary. 03141_ G-34 Mercenary destroyed. 03141_ Switching to secondary target: G-34 Mercenary. 03142_ Wheel destroyed. 03144_ G-34 Mercenary suffers critical hit (Burn). 03144_ Lgt. Armor Plating destroyed. 03147_ Aluminum Leg melted. 03147_ G-34 Mercenary destroyed. 03147_ Switching to secondary target: G-34 Mercenary. 03150_ G-34 Mercenary suffers critical hit (Burn). 03153_ G-34 Mercenary destroyed. 03162_ Overheating: System interference. 03162_ Lgt. Assault Rifle temporarily disabled. 03162_ Beam Rifle temporarily disabled. 03170_ Beam Rifle destroyed. Map ----- +----------------------------------------------------+ | ?????????????############# ###############?### | | ???????????? """"" """"" # + ####?##?# | | ???????????# """"" """"" # ## #?####### | | ???????????# """"" """"" # ## #?##???## | | ???????????# + ## ##??##### | | ???????????# ! # ## #?#?##??# | | ???????????# # ## #?##???## | | ???????????############### ## #???#?#?# | | ???????????????# ???? ## ## ###???#?# | | ???????????????# ??"?" ## ## #???#??#? | | ???????????????# "????" # ####+######?####?? | | ???????????????# " "??" # #?#??##? | | ???????????????# "????" + ##?#?#?# | | ???????????????# "?"""" # #??????? | | ???????????????# """ # ####+######??????? | | ???????????????# ## ## #???????? | | ???????????????# ## ## #???????# | | ???????????????########### ## """"" #???????# | | ???????????????# # ## "???" #???????# | | ???????????????# """ """ # ## ""??" #???????# | | ???????????????# """ """ + ## "??"" #???????# | | ???????????????# """ """ # ## "???" ######### | | ???????????????# # ## """"" / *=%/ | | ???????????????# !#% ## ######### | | ???????????????# !**%+[= ###########???????# | | ???????????????# =%@ # #?????????????????# | | ??????????????########g### #?????????????????? | | ??????????????# +[ #?????????????????? | | ??????????????# # #?????????????????? | | ??????????????# # #?????????????????? | | ??????????????# + #?????????????????? | | ??????????????# ####"##+#?????????????????? | | ??????????????# ## #?????????????????? | | ??????????????######### #?????????????????? | | ??????????????????????# #?????????????????? | | ??????????????????????# #?????????????????? | | ??????????????????????# #?????????????????? | | ??????????????????????# #?????????????????? | | ??????????????????????########?????????????????? | | ???????????????????????????????????????????????? | | ???????????????????????????????????????????????? | | ???????????????????????????????????????????????? | | ???????????????????????????????????????????????? | | ???????????????????????????????????????????????? | | ???????????????????????????????????????????????? | | ???????????????????????????????????????????????? | | ???????????????????????????????????????????????? | | ???????????????????????????????????????????????? | | ???????????????????????????????????????????????? | | | +----------------------------------------------------+ Best States ------------- Heat Dissipation 28 Energy Generation 14 Energy Capacity 280 Matter Stores 300 Matter Capacity 300 Sight Range 16 Terrain Scan Range 16 Terrain Scan Density 85 Armor Coverage 150 Core Shielding 20 Evasion (%) 40 Targeting Accuracy 5 Recoil Reduction 2 Item Schematics ----------------- None Robot Schematics ------------------ None Fabricated ------------ Nothing Repaired ---------- Nothing Studied --------- None Alien Tech Used ----------------- None Achievements -------------- None Challenges ------------ None Game ------ Seed ExpertAutogunLauncher Manual? 0 Play Time 00:18:55 Cumulative 54.9 hours Start 2026.03.04 @ 21:45:54 End 2026.03.04 @ 22:04:37 Sessions 1 Manual Loads 0 Difficulty Rogue Special Mode None Game No. 129 Rogue 129 Adventurer 0 Explorer 0 Win Type - Total 0 Types 0/0/0/0/0/0/0/0/0/0 Lore% 30 Gallery% 39 Achievement% 30 Wizard Run 0 Options --------- Layout 2 ASCII 0 Keyboard 1 Movement Arrows Keybinds 0 Fullscreen 1 Font 24/Smallcaps Map View 50x44 Zoom Use 0% Tactical HUD 1 Map Filters NONE Filters NONE Steam 1 RUN: 60560931-2cec-43b5-a31a-e93dd0595121